bitfinex/quotes_BTCUSD_20250624
["timestamp","ask_amount","ask_price","bid_price","bid_amount"]
[1750769007567,1.13714153,105090.0,105080.0,0.62809869]
[1750769007776,1.13714153,105090.0,105080.0,0.6376147]
[1750769007777,1.16568757,105090.0,105080.0,0.6376147]
[1750769008362,1.17510185,105090.0,105080.0,0.6376147]
[1750769008600,1.17510185,105090.0,105080.0,0.66941407]
[1750769008601,0.97527305,105090.0,105080.0,0.66941407]
[1750769008810,1.17510167,105090.0,105080.0,0.66941407]
[1750769009020,0.98478861,105090.0,105080.0,0.66941407]
[1750769009229,1.17510167,105090.0,105080.0,0.65989815]
[1750769009648,1.17510167,105090.0,105080.0,0.66089815]
[1750769010065,1.16558657,105090.0,105080.0,0.65138214]
[1750769010245,1.16558657,105090.0,105080.0,0.67041443]
[1750769010480,0.97527351,105090.0,105080.0,0.67041353]
[1750769011315,0.96575795,105090.0,105080.0,0.67041353]
[1750769011941,0.97527351,105090.0,105080.0,0.67041353]
[1750769012355,1.17510222,105090.0,105080.0,0.67041353]
[1750769014232,0.67188011,105090.0,105080.0,0.67041353]
[1750769014441,0.6718802,105090.0,105080.0,0.97041353]
[1750769014619,0.37800328,105090.0,105080.0,1.12041353]
[1750769014818,0.67188011,105090.0,105080.0,1.12041353]
[1750769015197,0.68139531,105090.0,105080.0,1.12041353]
[1750769016209,0.68139521,105090.0,105080.0,1.12041353]
[1750769016615,0.67188011,105090.0,105080.0,1.12041353]
[1750769016789,0.68139521,105090.0,105080.0,1.12041353]
[1750769017161,0.69091041,105090.0,105080.0,1.12041353]
[1750769017708,0.66236519,105090.0,105080.0,1.12041353]
[1750769017925,0.68139531,105090.0,105080.0,1.12041353]
[1750769020131,0.96575722,105090.0,105080.0,1.12041353]
[1750769020588,1.1751014,105090.0,105080.0,1.04103303]
[1750769020823,1.16558648,105090.0,105080.0,1.06006559]
[1750769021249,1.15607128,105090.0,105080.0,1.06006559]
[1750769021704,1.15607128,105090.0,105080.0,1.06958169]
[1750769023681,1.15607128,105090.0,105080.0,1.06006559]
[1750769024904,1.15607128,105090.0,105080.0,1.04103303]
[1750769025112,1.14655581,105090.0,105080.0,1.05054958]
[1750769025309,1.14655581,105090.0,105080.0,1.06006604]
[1750769025896,1.14655581,105090.0,105080.0,1.06958232]
[1750769026099,1.14655581,105090.0,105080.0,1.07909851]
[1750769026299,1.14655581,105090.0,105080.0,1.08861452]
[1750769026698,0.95624248,105090.0,105080.0,1.08861452]
[1750769026936,0.37800328,105090.0,105080.0,1.12081389]
[1750769027141,0.00941428,105090.0,105080.0,1.12081389]
[1750769027338,0.34,105090.0,105080.0,1.12081389]
[1750769027517,0.3496253,105090.0,105080.0,1.12081389]
[1750769027947,0.33415838,105090.0,105080.0,1.12081389]
[1750769028180,0.61852029,105090.0,105080.0,1.12081389]
[1750769032421,0.32453308,105090.0,105080.0,1.12081389]
[1750769032597,4.611e-05,105100.0,105090.0,0.25025892]
[1750769032973,4.611e-05,105100.0,105090.0,0.44576078]
[1750769033409,4.611e-05,105100.0,105090.0,0.73012269]
[1750769033809,0.00104611,105100.0,105090.0,0.44576078]
[1750769034265,4.611e-05,105100.0,105090.0,0.44576078]
[1750769034674,0.00604611,105100.0,105090.0,0.44576078]
[1750769035417,0.01404611,105100.0,105090.0,0.44676078]
[1750769036654,0.48459338,105130.0,105120.0,0.90129646]
[1750769036655,0.030577,105130.0,105120.0,0.90129646]
[1750769036905,0.030577,105130.0,105120.0,1.38116023]
[1750769037120,0.0021,105170.0,105160.0,0.35]
[1750769037339,0.28646191,105170.0,105160.0,0.99671509]
[1750769037554,0.28646191,105170.0,105160.0,1.09671509]
[1750769037770,0.72149332,105170.0,105160.0,1.05470659]
[1750769037987,0.72149341,105170.0,105160.0,1.05470641]
[1750769038199,0.75550915,105170.0,105160.0,0.59519737]
[1750769038418,0.94567807,105170.0,105160.0,0.60470641]
[1750769038656,0.7522935,105170.0,105160.0,0.61421518]
[1750769038868,0.7522935,105170.0,105160.0,0.62372386]
[1750769038869,0.73327785,105170.0,105160.0,0.62372386]
[1750769039090,0.70247785,105170.0,105160.0,0.62372386]
[1750769039315,0.62650805,105170.0,105160.0,0.62372386]
[1750769040185,0.62650805,105170.0,105160.0,0.62972386]
[1750769040669,0.34214614,105170.0,105160.0,0.78372386]
[1750769042165,0.62650805,105170.0,105160.0,0.78372386]
[1750769042371,0.34214614,105170.0,105160.0,0.78372386]
[1750769044740,0.00214614,105170.0,105160.0,0.81482386]
[1750769049697,0.00214614,105170.0,105160.0,1.25886263]
[1750769050292,0.00214614,105170.0,105160.0,0.81482386]
[1750769050708,0.00214614,105170.0,105160.0,1.25886263]
[1750769051154,0.00214614,105170.0,105160.0,0.81482386]
[1750769051425,0.00214614,105170.0,105160.0,0.66482386]
[1750769051584,0.00214614,105170.0,105160.0,0.93372386]
[1750769053592,0.34214614,105170.0,105160.0,0.93372386]
[1750769054635,0.00214614,105170.0,105160.0,0.93372386]
[1750769054842,0.34214614,105170.0,105160.0,0.93372386]
[1750769057066,0.00214614,105170.0,105160.0,0.93372386]
[1750769059896,0.81778491,105170.0,105160.0,0.93372386]
[1750769060075,0.89375471,105170.0,105160.0,0.93372386]
[1750769060294,0.90326231,105170.0,105160.0,0.91470641]
[1750769060505,0.93178619,105170.0,105160.0,0.93372404]
[1750769061173,1.12195529,105170.0,105160.0,0.90519737]
[1750769061387,1.12195529,105170.0,105160.0,0.91470632]
[1750769061617,1.12555819,105170.0,105160.0,0.60519755]
[1750769061829,1.10654155,105170.0,105160.0,0.60519755]
[1750769062264,1.10654155,105170.0,105160.0,0.61470668]
[1750769062466,1.10654128,105170.0,105160.0,0.61470668]
[1750769062688,1.11604951,105170.0,105160.0,0.62021554]
[1750769062882,1.04007971,105170.0,105160.0,0.61621554]
[1750769063114,1.04007971,105170.0,105160.0,0.62572431]
[1750769063357,1.05778197,105170.0,105160.0,0.62572431]
[1750769063775,0.40587211,105170.0,105160.0,0.63523299]
[1750769064028,0.86892698,105170.0,105160.0,0.63523299]
[1750769065146,1.0686035,105170.0,105160.0,0.62572431]
[1750769065364,0.88794353,105170.0,105160.0,0.63523299]
[1750769065577,0.90568726,105170.0,105160.0,0.63523299]
[1750769065788,0.89617894,105170.0,105160.0,0.63523299]
[1750769066238,0.88667071,105170.0,105160.0,0.63523299]
[1750769066446,0.8866708,105170.0,105160.0,0.63523299]
[1750769066662,0.91494365,105170.0,105160.0,0.63923299]
[1750769066868,0.91494356,105170.0,105160.0,0.63923299]
[1750769067109,0.90543542,105170.0,105160.0,0.63923299]
[1750769067579,0.91494356,105170.0,105160.0,0.63923299]
[1750769067806,0.86892698,105170.0,105160.0,0.63923299]
[1750769068031,1.09585393,105170.0,105160.0,0.63923299]
[1750769068255,0.90568564,105170.0,105160.0,0.63923299]
[1750769068479,0.88666909,105170.0,105160.0,0.63923299]
[1750769068705,0.886669,105170.0,105160.0,0.63923299]
[1750769068957,0.86892689,105170.0,105160.0,0.63923299]
[1750769069567,0.87843512,105170.0,105160.0,0.63923299]
[1750769069779,0.86892689,105170.0,105160.0,0.63923299]
[1750769070796,0.87843512,105170.0,105160.0,0.63923299]
[1750769071149,0.86892689,105170.0,105160.0,0.63923299]
[1750769071359,0.87843512,105170.0,105160.0,0.63923299]
[1750769071571,1.06860341,105170.0,105160.0,0.62972431]
[1750769071780,1.07811173,105170.0,105160.0,0.62972431]
[1750769072198,0.88794344,105170.0,105160.0,0.63923299]
[1750769072401,0.86892689,105170.0,105160.0,0.63923299]
[1750769074433,0.84991088,105170.0,105160.0,0.63923299]
[1750769074634,0.83680047,105170.0,105160.0,0.63923299]
[1750769074887,0.81839735,105170.0,105160.0,0.63923299]
[1750769075202,0.80888975,105170.0,105160.0,0.63923299]
[1750769075274,0.78618491,105170.0,105160.0,0.63923299]
[1750769075659,0.34214614,105170.0,105160.0,0.63923299]
[1750769076126,0.35165392,105170.0,105160.0,0.63923299]
[1750769076337,0.64537634,105170.0,105160.0,0.63923299]
[1750769076578,0.66137634,105170.0,105160.0,0.63923299]
[1750769076768,0.66696829,105170.0,105160.0,0.63923299]
[1750769077181,0.6669682,105170.0,105160.0,0.63923299]
[1750769077384,0.67647607,105170.0,105160.0,0.63923299]
[1750769077605,0.68598412,105170.0,105160.0,0.63923299]
[1750769077796,0.67647607,105170.0,105160.0,0.63923299]
[1750769078201,0.68598412,105170.0,105160.0,0.63923299]
[1750769078621,0.68598412,105170.0,105160.0,0.62972422]
[1750769079064,0.67647607,105170.0,105160.0,0.62972422]
[1750769080727,0.68598421,105170.0,105160.0,0.62972422]
[1750769081144,0.68598412,105170.0,105160.0,0.62972422]
[1750769082592,0.67647607,105170.0,105160.0,0.62972422]
[1750769083455,0.68598403,105170.0,105160.0,0.62972422]
[1750769083683,0.65746051,105170.0,105160.0,0.62972422]
[1750769083880,0.66696829,105170.0,105160.0,0.62972422]
[1750769084082,0.6669682,105170.0,105160.0,0.62972422]
[1750769084285,0.67647607,105170.0,105160.0,0.62972422]
[1750769084894,0.34214614,105170.0,105160.0,0.66172422]
[1750769085316,0.00214614,105170.0,105160.0,1.09593859]
[1750769085544,0.00214614,105170.0,105160.0,1.14593859]
[1750769085785,0.00214614,105170.0,105160.0,0.86172422]
[1750769086005,0.00214614,105170.0,105160.0,1.14593859]
[1750769086235,0.00214614,105170.0,105160.0,1.14393859]
[1750769086487,0.00214614,105170.0,105160.0,1.13993859]
[1750769086931,0.00049592,105170.0,105160.0,1.13993859]
[1750769087829,0.00049592,105170.0,105160.0,1.83993859]
[1750769088059,0.01749592,105170.0,105160.0,1.79093859]
[1750769088409,0.01749592,105170.0,105160.0,1.84193859]
[1750769090606,0.01749592,105170.0,105160.0,1.90647944]
[1750769090812,0.0001,105180.0,105170.0,1.19009244]
[1750769091013,0.0001,105180.0,105170.0,2.71856389]
[1750769091986,0.0171,105180.0,105170.0,2.72056389]
[1750769092284,0.0001,105200.0,105190.0,0.77867299]
[1750769092509,0.0001,105200.0,105190.0,1.4176007]
[1750769092846,0.00056136,105200.0,105190.0,1.49611942]
[1750769093060,0.00056136,105200.0,105190.0,2.19611942]
[1750769093273,0.00056136,105200.0,105190.0,2.22428892]
[1750769093513,0.00056136,105200.0,105190.0,2.22809492]
[1750769094445,0.00056136,105200.0,105190.0,2.27809492]
[1750769094663,0.00056136,105200.0,105190.0,2.61809492]
[1750769094870,0.00056136,105200.0,105190.0,2.62309492]
[1750769096123,0.00056136,105200.0,105190.0,2.61809492]
[1750769096548,0.00056136,105200.0,105190.0,2.62709492]
[1750769097215,0.00056136,105200.0,105190.0,3.07052077]
[1750769097428,0.002,105210.0,105200.0,1.58582263]
[1750769097640,0.00213832,105210.0,105200.0,2.48132449]
[1750769097927,0.00213832,105210.0,105200.0,2.37789864]
[1750769098765,0.00213832,105210.0,105200.0,2.40078486]
[1750769099194,0.0001,105220.0,105210.0,0.86860928]
[1750769099424,0.0001,105220.0,105210.0,2.62009796]
[1750769099645,0.0001,105220.0,105210.0,2.59926406]
[1750769099879,0.0001,105220.0,105210.0,2.71009796]
[1750769100785,0.0001,105220.0,105210.0,2.68821174]
[1750769101006,0.0001,105220.0,105210.0,2.61737784]
[1750769101228,0.0001,105220.0,105210.0,2.63641784]
[1750769101443,0.0001,105220.0,105210.0,2.68641784]
[1750769101672,0.0001,105220.0,105210.0,2.63641784]
[1750769101909,0.0001,105220.0,105210.0,2.68641784]
[1750769102564,0.0001,105220.0,105210.0,2.68741784]
[1750769103442,0.0001,105220.0,105210.0,2.69122184]
[1750769107122,0.0001,105220.0,105210.0,1.99122184]
[1750769109904,0.0001,105220.0,105210.0,2.69122184]
[1750769112518,0.0001,105220.0,105210.0,2.64122184]
[1750769113132,0.0001,105220.0,105210.0,2.54779599]
[1750769113569,0.0001,105220.0,105210.0,1.95891514]
[1750769113570,0.0305,105220.0,105210.0,1.95891514]
[1750769114406,0.0305,105220.0,105210.0,1.95791514]
[1750769114964,0.0305,105220.0,105210.0,1.97245599]
[1750769115776,0.0395,105220.0,105210.0,1.27345599]
[1750769116114,0.0305,105220.0,105210.0,1.27245599]
[1750769116519,0.0395,105220.0,105210.0,1.27345599]
[1750769120441,0.0395,105220.0,105210.0,1.18345599]
[1750769122362,0.0395,105220.0,105210.0,1.88345599]
[1750769124785,0.0395,105220.0,105210.0,2.32688184]
[1750769125024,0.0244,105220.0,105210.0,2.32688184]
[1750769125232,0.0091,105220.0,105210.0,2.32688184]
[1750769125449,0.0091,105220.0,105210.0,2.37688184]
[1750769126302,0.0091,105220.0,105210.0,2.39298184]
[1750769126533,0.0091,105220.0,105210.0,2.40818184]
[1750769127698,0.0091,105220.0,105210.0,2.79818184]
[1750769129397,0.0091,105220.0,105210.0,2.09818184]
[1750769129595,0.0091,105220.0,105210.0,2.24818184]
[1750769130373,0.0091,105220.0,105210.0,2.94818184]
[1750769132610,0.0021,105230.0,105220.0,0.12851059]
[1750769132775,0.0021,105230.0,105220.0,2.04445708]
[1750769133915,0.0021,105230.0,105220.0,2.13445708]
[1750769134155,0.0021,105270.0,105260.0,0.02849976]
[1750769134361,0.0021,105270.0,105260.0,2.94377402]
[1750769134567,0.00223835,105270.0,105260.0,3.69003702]
[1750769134958,0.00223835,105270.0,105260.0,3.72810034]
[1750769135331,0.00223835,105270.0,105260.0,2.98183734]
[1750769135535,0.00223835,105270.0,105260.0,2.93183734]
[1750769137004,0.0005263,105270.0,105260.0,2.95003734]
[1750769137213,0.0005263,105270.0,105260.0,2.90403734]
[1750769137630,0.0005263,105270.0,105260.0,2.95603734]
[1750769137847,0.0005263,105270.0,105260.0,2.90603734]
[1750769138289,0.0005263,105270.0,105260.0,2.30306817]
[1750769138505,0.0005263,105270.0,105260.0,2.35306817]
[1750769138719,0.0005263,105270.0,105260.0,2.79649402]
[1750769140324,0.0005263,105270.0,105260.0,2.79049402]
[1750769140528,0.0156263,105270.0,105260.0,2.79049402]
[1750769140726,0.0318263,105270.0,105260.0,1.89252732]
[1750769140959,0.0318263,105270.0,105260.0,1.86400732]
[1750769141918,0.0318263,105270.0,105260.0,1.16400732]
[1750769143251,0.0318263,105270.0,105260.0,1.17854817]
[1750769143724,0.0318263,105270.0,105260.0,1.67197402]
[1750769143939,0.0005263,105270.0,105260.0,2.06197402]
[1750769144379,0.0005263,105270.0,105260.0,2.76197402]
[1750769145218,0.0005263,105270.0,105260.0,2.77787402]
[1750769145850,0.0005263,105270.0,105260.0,2.92787402]
[1750769146470,0.0005263,105270.0,105260.0,2.94327402]
[1750769147755,0.0005263,105270.0,105260.0,2.24327402]
[1750769149550,0.0005263,105270.0,105260.0,2.53487402]
[1750769150569,0.0005263,105270.0,105260.0,3.23487402]
[1750769151215,0.0001,105280.0,105270.0,1.14865141]
[1750769151450,0.0001,105280.0,105270.0,1.34415327]
[1750769151652,0.0001,105280.0,105270.0,2.04415327]
[1750769152279,0.0021,105290.0,105280.0,1.80763064]
[1750769152482,0.0021,105290.0,105280.0,2.6136215]
[1750769152635,0.0021,105290.0,105280.0,2.9637215]
[1750769152847,0.0021,105290.0,105280.0,2.7072635]
[1750769154423,0.0021,105290.0,105280.0,2.6031325]
[1750769154641,0.0021,105290.0,105280.0,2.7172635]
[1750769155376,0.0021,105290.0,105280.0,2.9986285]
[1750769155591,0.0021,105290.0,105280.0,2.7135325]
[1750769157739,0.0021,105290.0,105280.0,2.27010665]
[1750769157987,0.0187,105290.0,105280.0,2.7135325]
[1750769158918,0.0187,105290.0,105280.0,2.7175325]
[1750769159357,0.0187,105290.0,105280.0,2.7362325]
[1750769161264,0.0021,105290.0,105280.0,2.3946325]
[1750769161476,0.0021,105290.0,105280.0,2.4636425]
[1750769162785,0.0021,105290.0,105280.0,2.4788425]
[1750769163440,0.0021,105290.0,105280.0,2.8349425]
[1750769163655,0.0021,105290.0,105280.0,3.8050855]
[1750769163865,0.0021,105290.0,105280.0,2.9588025]
[1750769164081,0.0021,105290.0,105280.0,2.9536425]
[1750769164326,0.0021,105290.0,105280.0,2.9346325]
[1750769165659,0.0021,105290.0,105280.0,2.8846325]
[1750769166289,0.0021,105290.0,105280.0,2.9036425]
[1750769166533,0.0021,105290.0,105280.0,2.9536425]
[1750769168334,0.0021,105290.0,105280.0,2.46021665]
[1750769168551,0.0021,105290.0,105280.0,2.9536425]
[1750769170458,0.002,105310.0,105300.0,1.5919733]
[1750769170665,0.0347609,105310.0,105300.0,2.93090101]
[1750769171490,0.0347609,105310.0,105300.0,2.95941401]
[1750769172143,0.0347609,105310.0,105300.0,2.51598816]
[1750769173266,0.0347609,105310.0,105300.0,2.95941401]
[1750769175423,0.0347609,105310.0,105300.0,2.96904467]
[1750769179058,0.0347609,105310.0,105300.0,2.52561882]
[1750769179272,0.0347609,105310.0,105300.0,2.96904467]
[1750769179499,0.0001,105320.0,105310.0,0.28294256]
[1750769179717,0.0001,105320.0,105310.0,1.91963527]
[1750769179934,0.0021,105330.0,105320.0,1.69535768]
[1750769180165,0.00199468,105330.0,105320.0,2.23085954]
[1750769180388,0.00213292,105330.0,105320.0,2.57481754]
[1750769180655,0.00213292,105330.0,105320.0,2.59221754]
[1750769181093,0.00213292,105330.0,105320.0,2.57320754]
[1750769181727,0.00213292,105330.0,105320.0,3.27720754]
[1750769182203,0.00090331,105350.0,105340.0,1.57288035]
[1750769182417,0.00090331,105350.0,105340.0,2.21180806]
[1750769182627,0.00090331,105350.0,105340.0,2.91180806]
[1750769183064,0.00090331,105350.0,105340.0,2.94094212]
[1750769183290,0.03310331,105350.0,105340.0,2.94094212]
[1750769183727,0.00090331,105350.0,105340.0,2.94094212]
[1750769184790,0.00090331,105350.0,105340.0,2.94294212]
[1750769185004,0.00090331,105350.0,105340.0,2.96014212]
[1750769188138,0.00090331,105350.0,105340.0,2.16217542]
[1750769188364,0.03190331,105350.0,105340.0,1.88304136]
[1750769189294,0.03190331,105350.0,105340.0,1.86584136]
[1750769189513,0.03190331,105350.0,105340.0,1.86784136]
[1750769189754,0.03190331,105350.0,105340.0,1.16784136]
[1750769190650,0.03190331,105350.0,105340.0,0.91784136]
[1750769190868,0.47532916,105350.0,105340.0,0.90224136]
[1750769191080,0.47532916,105350.0,105340.0,0.91384136]
[1750769191296,0.47532916,105350.0,105340.0,0.91584136]
[1750769191507,0.4848206,105350.0,105340.0,0.91584136]
[1750769191734,0.47532916,105350.0,105340.0,0.92284136]
[1750769192168,0.47532916,105350.0,105340.0,0.93584136]
[1750769192409,0.03190331,105350.0,105340.0,0.92684136]
[1750769192628,0.03190331,105350.0,105340.0,0.94784136]
[1750769193887,0.04139466,105350.0,105340.0,0.94784136]
[1750769194294,0.03190331,105350.0,105340.0,0.94784136]
[1750769195135,0.04139466,105350.0,105340.0,0.94784136]
[1750769195344,0.05088628,105350.0,105340.0,0.94784136]
[1750769195560,0.04139466,105350.0,105340.0,0.94784136]
[1750769196179,0.0603779,105350.0,105340.0,1.03784136]
[1750769196407,0.51329573,105350.0,105340.0,1.03784136]
[1750769196609,0.50380375,105350.0,105340.0,1.03784136]
[1750769196815,0.52278762,105350.0,105340.0,1.02834893]
[1750769197020,0.52278762,105350.0,105340.0,1.03784136]
[1750769197231,1.05263099,105350.0,105340.0,1.00936326]
[1750769197481,0.85329681,105350.0,105340.0,1.04733388]
[1750769198091,1.04314018,105350.0,105340.0,1.03784145]
[1750769198526,0.85329681,105350.0,105340.0,1.03784145]
[1750769198732,0.85329681,105350.0,105340.0,1.04733388]
[1750769198938,0.81532916,105350.0,105340.0,1.04733388]
[1750769199358,0.40041931,105350.0,105340.0,1.04733388]
[1750769199565,0.37190331,105350.0,105340.0,1.04733388]
[1750769203749,0.37190331,105350.0,105340.0,1.19733388]
[1750769205538,0.36942331,105350.0,105340.0,1.19733388]
[1750769208041,0.82234069,105350.0,105340.0,0.74733388]
[1750769208400,0.8413242,105350.0,105340.0,1.04733388]
[1750769208874,0.83183231,105350.0,105340.0,1.04733388]
[1750769210262,0.84132411,105350.0,105340.0,1.04733388]
[1750769210804,0.83183231,105350.0,105340.0,1.04733388]
[1750769211025,0.84132402,105350.0,105340.0,1.04733388]
[1750769211706,0.83183231,105350.0,105340.0,1.04733388]
[1750769212114,0.8413242,105350.0,105340.0,1.04733388]
[1750769212323,0.83183231,105350.0,105340.0,1.04733388]
[1750769212526,0.82234069,105350.0,105340.0,1.04733388]
[1750769213377,0.83183249,105350.0,105340.0,1.04733388]
[1750769213585,0.82234069,105350.0,105340.0,1.04733388]
[1750769213975,0.81284916,105350.0,105340.0,1.04733388]
[1750769214440,0.36942331,105350.0,105340.0,1.04733388]
[1750769214872,0.02942331,105350.0,105340.0,1.04733388]
[1750769223574,0.50132366,105350.0,105340.0,1.03784136]
[1750769223791,1.05015108,105350.0,105340.0,0.86885614]
[1750769224056,1.03116829,105350.0,105340.0,0.87834884]
[1750769224272,1.03116829,105350.0,105340.0,0.86885614]
[1750769224694,1.02167658,105350.0,105340.0,0.87834893]
[1750769225116,0.84132465,105350.0,105340.0,0.89733406]
[1750769225562,0.83183267,105350.0,105340.0,0.89733406]
[1750769225774,0.84132465,105350.0,105340.0,0.89733406]
[1750769226188,0.83183267,105350.0,105340.0,0.89733406]
[1750769226389,0.84132465,105350.0,105340.0,0.89733406]
[1750769226598,0.83183267,105350.0,105340.0,0.89733406]
[1750769227226,0.84132393,105350.0,105340.0,0.89733406]
[1750769227432,0.85081591,105350.0,105340.0,0.89733406]
[1750769228306,0.85081591,105350.0,105340.0,0.88784163]
[1750769228524,1.04066,105350.0,105340.0,0.66950186]
[1750769228746,1.02167658,105350.0,105340.0,0.66950186]
[1750769228963,1.02167658,105350.0,105340.0,0.31950186]
[1750769229427,1.02167658,105350.0,105340.0,0.30650186]
[1750769229611,1.02167658,105350.0,105340.0,0.31650186]
[1750769230071,1.02167658,105350.0,105340.0,0.48485614]
[1750769230288,1.02167658,105350.0,105340.0,0.51334893]
[1750769230508,1.02167658,105350.0,105340.0,0.52334893]
[1750769230691,1.02167658,105350.0,105340.0,0.51385614]
[1750769230930,1.0121846,105350.0,105340.0,0.51385614]
[1750769231124,1.00269253,105350.0,105340.0,0.50436326]
[1750769231816,1.00269253,105350.0,105340.0,0.31450186]
[1750769232452,0.55926668,105350.0,105340.0,0.51385633]
[1750769232678,1.00269253,105350.0,105340.0,0.32399493]
[1750769232892,1.00269253,105350.0,105340.0,0.51385633]
[1750769233544,1.00269253,105350.0,105340.0,0.52334921]
[1750769234038,1.00269253,105350.0,105340.0,0.51385633]
[1750769234254,1.00269253,105350.0,105340.0,0.5233493]
[1750769234534,1.00269253,105350.0,105340.0,0.51385633]
[1750769234737,1.00269253,105350.0,105340.0,0.31450186]
[1750769236480,0.55926668,105350.0,105340.0,0.30450186]
[1750769236691,1.00269253,105350.0,105340.0,0.29450186]
[1750769236872,1.00269253,105350.0,105340.0,0.31150186]
[1750769238775,0.24176673,105330.0,105320.0,0.302]
[1750769239004,0.68519258,105330.0,105320.0,0.39750186]
[1750769239984,0.68519258,105330.0,105320.0,0.24750186]
[1750769240187,0.68519258,105330.0,105320.0,0.26450186]
[1750769240422,0.68519258,105330.0,105320.0,0.45439931]
[1750769240632,0.68519258,105330.0,105320.0,0.46389418]
[1750769240850,0.68519258,105330.0,105320.0,0.26450186]
[1750769241753,0.68519258,105330.0,105320.0,0.019]
[1750769241977,0.71371858,105330.0,105320.0,0.019]
[1750769242652,0.72327162,105330.0,105320.0,0.002]
[1750769243527,0.72327162,105330.0,105320.0,0.007]
[1750769244162,0.53941053,105310.0,105300.0,0.73689603]
[1750769244375,1.04352306,105310.0,105300.0,0.94203262]
[1750769244604,1.04352306,105310.0,105300.0,0.95152866]
[1750769244830,0.84411172,105310.0,105300.0,0.95152866]
[1750769245043,0.84411163,105310.0,105300.0,0.95152866]
[1750769245259,0.8251209,105310.0,105300.0,0.95152866]
[1750769245473,0.83461604,105310.0,105300.0,0.95152866]
[1750769245893,0.82512081,105310.0,105300.0,0.95152866]
[1750769246158,0.83461595,105310.0,105300.0,0.96152866]
[1750769246370,0.85360695,105310.0,105300.0,0.88555886]
[1750769246596,1.05301892,105310.0,105300.0,0.86656669]
[1750769246806,1.05301892,105310.0,105300.0,0.11213824]
[1750769246807,1.46795863,105310.0,105300.0,0.11213824]
[1750769247027,1.05373249,105310.0,105300.0,0.11713824]
[1750769247254,1.08226549,105310.0,105300.0,0.11713824]
[1750769247478,0.53943001,105300.0,105290.0,0.0002]
[1750769247690,0.53943001,105300.0,105280.0,0.002]
[1750769247691,0.57216808,105280.0,105270.0,0.69940834]
[1750769247901,1.01559393,105280.0,105270.0,0.8949102]
[1750769248120,1.01559393,105280.0,105270.0,0.19550186]
[1750769248334,0.53948685,105270.0,105260.0,0.0779698]
[1750769248556,1.02371181,105270.0,105260.0,0.47297755]
[1750769248790,1.02371181,105270.0,105260.0,0.39700775]
[1750769249004,1.02371181,105270.0,105260.0,0.40650776]
[1750769249134,1.02371181,105270.0,105260.0,0.41600768]
[1750769249558,0.81472585,105270.0,105260.0,0.43596841]
[1750769249763,0.0153,105270.0,105260.0,0.44546806]
[1750769249973,0.0307,105270.0,105260.0,0.44546806]
[1750769250630,0.47412585,105270.0,105260.0,0.44546806]
[1750769250881,0.34,105270.0,105260.0,0.52143786]
[1750769251548,0.9780227,105290.0,105280.0,0.41846394]
[1750769251774,1.36555194,105290.0,105280.0,0.5139658]
[1750769252085,1.34651406,105290.0,105280.0,0.5139658]
[1750769252496,1.33701685,105290.0,105280.0,0.5139658]
[1750769252718,0.87459685,105290.0,105280.0,0.5139658]
[1750769252929,1.34951424,105290.0,105280.0,0.5139658]
[1750769253154,0.89659091,105290.0,105280.0,0.5139658]
[1750769253369,1.3210227,105290.0,105280.0,0.6139658]
[1750769253627,1.33051964,105290.0,105280.0,0.6139658]
[1750769254063,1.32751964,105290.0,105280.0,0.6139658]
[1750769254279,1.33701685,105290.0,105280.0,0.6139658]
[1750769255029,1.34651415,105290.0,105280.0,0.6139658]
[1750769255430,1.35601154,105290.0,105280.0,0.6189658]
[1750769255967,1.53201295,105290.0,105280.0,0.008]
[1750769256182,1.53201295,105290.0,105260.0,0.69246254]
[1750769256183,0.23918578,105270.0,105260.0,0.0024609]
[1750769256369,1.02261163,105270.0,105260.0,0.1024609]
[1750769256563,1.02261163,105270.0,105260.0,0.11128868]
[1750769257019,1.05115663,105270.0,105260.0,0.11128868]
[1750769257757,1.05115663,105270.0,105260.0,0.01128868]
[1750769257965,1.05115663,105270.0,105260.0,0.01428868]
[1750769258393,1.06065601,105270.0,105260.0,0.20429438]
[1750769258607,1.05115708,105270.0,105260.0,0.01428868]
[1750769259652,1.05115708,105270.0,105260.0,0.01128868]
[1750769260281,1.05115708,105270.0,105260.0,0.01128056]
[1750769260494,1.05115708,105270.0,105260.0,0.01228056]
[1750769260708,1.05115708,105270.0,105260.0,0.01127989]
[1750769261131,1.05215708,105270.0,105260.0,0.01127989]
[1750769262373,1.05215708,105270.0,105260.0,0.21078578]
[1750769262598,1.05215708,105270.0,105260.0,0.20128559]
[1750769262808,1.05215708,105270.0,105260.0,0.21078578]
[1750769263673,1.05215708,105270.0,105260.0,0.21078729]
[1750769263896,0.85266978,105270.0,105260.0,0.32528872]
[1750769264107,0.48246951,105270.0,105260.0,0.61646822]
[1750769264326,0.029545,105270.0,105260.0,0.61646822]
[1750769264745,0.028545,105270.0,105260.0,0.61646822]
[1750769265183,0.028545,105270.0,105260.0,0.61946822]
[1750769265391,0.028545,105270.0,105260.0,0.69543802]
[1750769265609,0.368545,105270.0,105260.0,0.69543802]
[1750769266465,0.368545,105270.0,105260.0,0.71083802]
[1750769266672,0.81191928,105280.0,105270.0,0.66848471]
[1750769266875,0.81191928,105280.0,105270.0,0.86398657]
[1750769267290,1.05278601,105280.0,105270.0,0.86398657]
[1750769267495,1.05278601,105280.0,105270.0,0.64550186]
[1750769267707,1.02429222,105280.0,105270.0,0.19550186]
[1750769267910,1.02429222,105280.0,105270.0,0.1]
[1750769268116,1.53163307,105280.0,105270.0,0.1]
[1750769268323,0.23138685,105270.0,105260.0,0.1074609]
[1750769268539,0.6748127,105270.0,105260.0,0.20296276]
[1750769268743,1.0148127,105270.0,105260.0,0.19796276]
[1750769269618,1.0433547,105270.0,105260.0,0.19796276]
[1750769269825,1.0433547,105270.0,105260.0,0.20096276]
[1750769270074,1.0433547,105270.0,105260.0,0.39096846]
[1750769270289,1.0433547,105270.0,105260.0,0.20096276]
[1750769270915,1.0433547,105270.0,105260.0,0.20981368]
[1750769271132,1.0433547,105270.0,105260.0,0.11431182]
[1750769271347,1.5361547,105270.0,105260.0,0.01431182]
[1750769271811,1.5361547,105270.0,105260.0,0.01631182]
[1750769272035,1.5361547,105270.0,105260.0,0.01331182]
[1750769272246,1.5361547,105270.0,105260.0,0.0024609]
[1750769272464,1.5371547,105270.0,105260.0,0.0024609]
[1750769272680,1.5381547,105270.0,105260.0,0.0024609]
[1750769274038,1.54765381,105270.0,105260.0,0.1924666]
[1750769274246,1.5381547,105270.0,105260.0,0.0024609]
[1750769275528,1.56084085,105270.0,105260.0,0.01132892]
[1750769277805,1.56084085,105270.0,105260.0,0.01133788]
[1750769278451,1.56084085,105270.0,105260.0,0.0024609]
[1750769280079,1.117415,105270.0,105260.0,0.0024609]
[1750769280320,1.56084085,105270.0,105260.0,0.0024609]
[1750769287564,1.5381547,105270.0,105260.0,0.0024609]
[1750769287772,1.56090105,105270.0,105260.0,0.0024609]
[1750769287989,1.5754419,105270.0,105260.0,0.0024609]
[1750769291023,0.5703058,105260.0,105250.0,0.00016001]
[1750769291235,0.5703058,105260.0,105250.0,0.00029836]